Workbook

Sheet Cover
A13: Customer: | B13: Volvo
A15: Program: | B15: 2023 P6700
A17: Commodity: | B17: Rear Wall Inner Header & Door Ring RH (17 jph)
A19: Plant: | B19: NPV
A21: Job # | B21: 16145
A23: Date: | B23: 2022-03-07
A25: Cycle Time: | B25: 212

Sheet STA 010 & STA 020 (ALL)
B2: Man and Machine Motions | AB2: Operator | CR2: =Cover!B13 -> Volvo
B3: PRELIMINARY TIMING ESTIMATES | AB3: Machine | CR3: =Cover!B15 -> 2023 P6700
AB4: Robot | CR4: =Cover!B17 -> Rear Wall Inner Header & Door Ring RH (17 jph)
F5: =Q8-AP8 -> 0 | AB5: Operator Wait | CR5: =Cover!B19 -> NPV
A6: TOOL DESCRIPTION: | E6: Hours | F6: REUQIRED | Q6: TOTAL TIME | AP6: TOTAL TIME | BO6: TOTAL MILES WALKED | DC6: ROBOT | DW6: OPERATOR TIME | GE6: MACHINE
A7: =RIGHT(CELL("filename",D2),LEN(CELL("filename",D2))-FIND("]",CELL("filename",D2))) -> STA 010 & STA 020 (ALL) | E7: /Shift | F7: JPH | Q7: AVAILABLE | AP7: UTILIZED | BO7: APPROX. 8 HR SHIFT | DC7: TIME | DW7: WORK | EQ7: WAIT | FK7: % UTIL. | GE7: TIME
E8: 7.4 | F8: =3600/Q8 -> 16.98113208 | Q8: 212 | AP8: 212 | BO8: 3.189108062 | DC8: 622.86 | DW8: 154.4 | EQ8: 57.6 | FK8: 72.83018494 | GE8: 36
A9: step | B9: STATION | C9: Cyl. | D9: WALK | F9: RUN | CW9: CYCLE TIME (seconds)
A10: # | B10: DESCRIPTION | C10: Num. | D10: DIST. | E10: SEC | F10: SEC | G10: 10.59999943 | Q10: =2*$G$10 -> 21.19999886 | AA10: =3*$G$10 -> 31.79999828 | AK10: =4*$G$10 -> 42.39999771 | AU10: =5*$G$10 -> 52.99999714 | BE10: =6*$G$10 -> 63.59999657 | BO10: =7*$G$10 -> 74.19999599 | BY10: =8*$G$10 -> 84.79999542 | CI10: =9*$G$10 -> 95.39999485 | CS10: =10*$G$10 -> 105.9999943 | DC10: =11*$G$10 -> 116.5999937 | DM10: =12*$G$10 -> 127.1999931 | DW10: =13*$G$10 -> 137.7999926 | EG10: =14*$G$10 -> 148.399992 | EQ10: =15*$G$10 -> 158.9999914 | FA10: =16*$G$10 -> 169.5999908 | FK10: =17*$G$10 -> 180.1999903 | FU10: =18*$G$10 -> 190.7999897 | GE10: =19*$G$10 -> 201.3999891 | GO10: =20*$G$10 -> 211.9999886
A11: 1 | B11: Logic Delay | E11: 1.25 | F11: =E11 -> 1.25 | IP11: 5 | IQ11: 2
A12: =A11+1 -> 2 | B12: T2 HEADER OPER LOAD | IP12: 2
A13: 3 | B13: Oper walks to fixture | D13: 4 | E13: 1.2 | F13: =F11+E13 -> 2.45 | IP13: 2
A14: 4 | B14: Oper loads (2) parts Baffle (5717) | E14: 3.6 | F14: =E14 +F13 -> 6.05 | IP14: 2
A15: 5 | B15: Oper walks to part bin | D15: 7 | E15: 2.1 | F15: =E15 +F14 -> 8.15 | IP15: 2
A16: 6 | B16: Oper obtains and loads (1) part | E16: 3.6 | F16: 11.75 | IP16: 2
A17: 7 | B17: Oper walks to fixture | D17: 7 | E17: 2.1 | F17: 13.85 | IP17: 2
A18: 8 | B18: Oper loads (1) part Cross Meb. (1995) | E18: 3.6 | F18: 17.45 | IP18: 2
A19: 9 | B19: Oper walks to part bin | D19: 7 | E19: 2.1 | F19: 19.55 | IP19: 2
A20: 10 | B20: Oper obtains (1) part | E20: 1.8 | F20: 21.35 | IP20: 2
A21: 11 | B21: Oper steps to part bin | E21: 0.9 | F21: 22.25 | IP21: 2
A22: 12 | B22: Oper obtains (1) part | E22: 1.8 | F22: 24.05 | IP22: 2
A23: 13 | B23: Oper walks to part fixture | D23: 7 | E23: 2.1 | F23: 26.15 | IP23: 2
A24: 14 | B24: Oper loads (2) parts Reinf. HDR (0872 / 0870) | E24: 2.4 | F24: 28.55 | IP24: 2
A25: 15 | B25: Oper walks to part bin | D25: 9 | E25: 2.7 | F25: 31.25 | IP25: 2
A26: 16 | B26: Oper obtains (2) parts | E26: 3.6 | F26: 34.85 | IP26: 2
A27: 17 | B27: Oper walks to fixture | D27: 9 | E27: 2.7 | F27: 37.55 | IP27: 2
A28: 18 | B28: Oper loads (2) parts Tie PLT (6976) | E28: 3.6 | F28: 41.15 | IP28: 2
A29: 19 | B29: Oper walks to part bin | D29: 9 | E29: 2.7 | F29: 43.85 | IP29: 2
A30: 20 | B30: Oper obtains (1) part | E30: 2.4 | F30: 46.25 | IP30: 2
A31: 21 | B31: Oper walks to fixture | D31: 6 | E31: 2.7 | F31: 48.95 | IP31: 2
A32: 22 | B32: Oper loads (1) part Cross Meb. (1994) | E32: 2.4 | F32: 51.35 | IP32: 2
A33: 23 | B33: Oper walks to palm buttons | D33: 8 | E33: 2.4 | F33: 53.75 | IP33: 2
A34: 24 | B34: Oper depress palm buttons | E34: 1 | F34: 54.75 | IP34: 2
A35: 25 | B35: 010-T2 GEO Clamps close | C35: UQ3.1 TO UQ3.6 UQ4.1 TO UQ4.6 UQ5.1 TO UQ5.4 UQ6.1 TO UQ6.4 UQ7.1 UQ7.2 UQ8.1 UQ8.2 UQ9.1 UQ9.2 UQ10.1 UQ10.2 | E35: 1 | F35: 55.75 | IP35: 3
A36: 26 | B36: T1 DOOR RING OPER LOAD | DY36: 2 | IP36: 2 | IQ36: 2
A37: 27 | B37: Oper obtains assist | E37: 1.2 | F37: =F35+E37 -> 56.95 | IP37: 2 | IQ37: 3
A38: 28 | B38: Oper walks into fixture | D38: 4 | E38: 2 | F38: =E38+F37 -> 58.95 | IP38: 2
A39: 29 | B39: Oper obtains Door Ring ASM | E39: 12.5 | F39: 71.45 | IP39: 2
A40: 30 | B40: Oper walks to dunnage | D40: 6 | E40: 3 | F40: 74.45 | IP40: 2
A41: 31 | B41: Oper places ASM | E41: 12.5 | F41: 86.95 | IP41: 2
A42: 32 | B42: Oper walks to dunnage | D42: 3 | E42: 2 | F42: 88.95 | IP42: 2
A43: 33 | B43: Oper places part (DOOR RING) | E43: 12.5 | F43: 101.45 | IP43: 2
A44: =A43+1 -> 34 | B44: Oper dispose of assist | E44: 1.8 | F44: =F43+E44 -> 103.25 | IP44: 2
A45: 35 | B45: Oper walks to dunnage | D45: 3 | E45: 0.9 | F45: 104.15 | IP45: 2
A46: 36 | B46: Oper obtains part (6426) | E46: 1.8 | F46: 105.95 | IP46: 2
A47: 37 | B47: Oper walks to next dunnage | D47: 3 | E47: 0.9 | F47: 106.85 | IP47: 2
A48: 38 | B48: Oper obtains part (4748) | E48: 1.8 | F48: 108.65 | IP48: 2
A49: 39 | B49: Oper walks to light screen | D49: 3 | E49: 0.9 | F49: 109.55 | IP49: 2
A50: 40 | B50: Oper walks to fixture 010-T1 w/parts | D50: 4 | E50: 1.2 | F50: 110.75 | IP50: 2
A51: 41 | B51: Oper loads part (HINGE REINF) (6426) | E51: 1.8 | F51: 112.55 | IP51: 2
A52: 42 | B52: Oper loads part (A-PILLAR) (4748) | E52: 1.8 | F52: 114.35 | IP52: 2
A53: 43 | B53: Oper walks to totes | D53: 2 | E53: 0.6 | F53: 114.95 | IP53: 2
A54: 44 | B54: Oper obtains part from tote (5728) | E54: 1.8 | F54: 116.75 | IP54: 2
A55: 45 | B55: Oper walks to fixture | D55: 2 | E55: 0.6 | F55: 117.35 | IP55: 2
A56: 46 | B56: Oper loads part (5728) | E56: 1.8 | F56: 119.15 | IP56: 2
A57: 47 | B57: Oper walks to assit | D57: 7 | E57: 2.1 | F57: =E57+F56 -> 121.25 | IP57: 2
A58: 48 | B58: oper obtains assist | E58: 1.8 | F58: 123.05 | IP58: 2
A59: 49 | B59: Oper walks to dunnage | D59: 3 | E59: 0.9 | F59: 123.95 | IP59: 2
A60: 50 | B60: Oper obtains (4748) w/assist | E60: 12.5 | F60: 136.45 | IP60: 2
A61: =A60+1 -> 51 | B61: Oper walks to fixture | D61: 7 | E61: 3.5 | F61: =E61+F60 -> 139.95 | IP61: 2
A62: 52 | B62: Oper loads (4748) | E62: 12.5 | F62: =E62+F61 -> 152.45 | IP62: 2
A63: 53 | B63: Oper walks to palm buttons | D63: 4 | E63: 1.2 | F63: 153.65 | IP63: 2
A64: 54 | B64: Oper depress palm buttons | E64: 1 | F64: =F105+E64 -> 173.81 | IP64: 3
A65: 55 | B65: Oper walks to HDR duunage | D65: 10 | E65: 3 | F65: 176.81 | IP65: 2
B66: Clamps close | C66: UQ4.1 TO UQ4.6 UQ5.1 TO UQ5.3 UQ6.1
A67: =A65+1 -> 56 | B67: Shot Pin Retracts | C67: UQ2.1 | E67: 1 | F67: =F65+E67 -> 177.81 | IP67: 3
A68: 57 | B68: ROBOT WELD HEADER STG 1&2 | IP68: 2
A69: 58 | B69: Turntable rotates 180° to RH weld | E69: 6 | F69: =F34+E69 -> 60.75 | IP69: 3
A70: 59 | B70: Robot V01AR21 moves to weld | E70: 0.02 | F70: =F34+E70 -> 54.77 | IP70: 4
A71: 60 | B71: Robot V01AR21 welds 5 spots (STG 2 GEO 1) | E71: 17.89 | F71: =F69+E71 -> 78.64 | IP71: 4
A72: =A71+1 -> 61 | B72: Respot Pin Retracts | C72: UQ11.2 | E72: 1 | F72: =F89+E72 -> 94.48 | IP72: 3
A73: =A72+1 -> 62 | B73: Robot V01AR21 welds 2 spots (STG 2 RESPOT 1) | E73: 11.46 | F73: =F72+E73 -> 105.94 | IP73: 4
A74: 63 | B74: 010-T2 GEO Respot Clamp Opens | C74: UQ7.1 UQ7.2 UQ8.1 UQ8.2 UQ9.1 UQ9.2 UQ10.1 UQ10.2 | E74: 1 | F74: =F73+E74 -> 106.94 | IP74: 3
A75: 64 | B75: 010-T2 GEO Respot Pin Retracts | C75: UQ11.1 UQ11.2 | E75: 1 | F75: =F74 -> 106.94 | IP75: 3
A76: =A74+1 -> 64 | B76: Robot V01AR21 welds 1 spots (STG 2 RESPOT 2) | E76: 7.56 | F76: =F74+E76 -> 114.5 | IP76: 4
A77: 65 | B77: Respot 3 Clamp Opens | C77: UQ9.1 UQ9.2 | E77: 1 | F77: =F76+E77 -> 115.5 | IP77: 3
A78: 66 | B78: Robot V01AR21 welds 7 spots (STG 2 RESPOT 3) | E78: 26.62 | F78: =F77+E78 -> 142.12 | IP78: 4
A79: =A78+1 -> 67 | IP79: 2
A80: 68 | B80: Robot V01AR22 moves to weld | E80: 0.82 | F80: =F34+E80 -> 55.57 | IP80: 4
A81: 69 | B81: Robot V01AR22 welds 2 spots (STG 2 GEO 1) | E81: 11.58 | F81: =F69+E81 -> 72.33 | IP81: 4
A82: 70 | B82: Robot V01AR22 welds 2 spots (STG 2 GEO 2) | E82: 11.63 | F82: =F71+E82 -> 90.27 | IP82: 4
A83: 71 | B83: Robot V01AR22 welds 4 spots (STG 1 GEO 1) | E83: 17.81 | F83: =F82+E83 -> 108.08 | IP83: 4
A84: 72 | B84: Robot V01AR22 welds 1 spots (STG 2 RESPOT 3_1) | E84: 6.32 | F84: =F78+E84 -> 148.44 | IP84: 4
A85: 73 | B85: Robot V01AR22 welds 1 spots (STG 2 RESPOT 3_2) | E85: 6.85 | F85: =F84+E85 -> 155.29 | IP85: 4
A86: 74 | B86: Robot V01AR22 RTH | E86: 0.73 | F86: =F85+E86 -> 156.02 | IP86: 4
A87: 75 | IP87: 2
A88: 76 | B88: Robot V01AR41 moves to weld | E88: 1.52 | F88: =F34+E88 -> 56.27 | IP88: 4
A89: 77 | B89: Robot V01AR41 welds 7 spots (STG 2 GEO 1) | E89: 21.15 | F89: =F81+E89 -> 93.48 | IP89: 4
A90: 78 | B90: Robot V01AR41 welds 1 spots (STG 2 RESPOT 2) | E90: 5.38 | F90: =F74+E90 -> 112.32 | IP90: 4
A91: 79 | B91: Robot V01AR41 welds 7 spots (STG 2 RESPOT 3) | E91: 28.19 | F91: =F77+E91 -> 143.69 | IP91: 4
A92: 80 | B92: Robot V01AR41 moves to drop weld gun | E92: 4.4 | F92: =F91+E92 -> 148.09 | IP92: 4
A93: 81 | B93: Robot V01AR41 drops weld gun | E93: 1.5 | F93: =F92+E93 -> 149.59 | IP93: 4
A94: 82 | B94: Rpbpt V01AR41 clears gun drop | E94: 1.33 | F94: =F93+E94 -> 150.92 | IP94: 4
A95: 83 | B95: ROBOT R03 LOAD | IP95: 2
A96: 84 | B96: Robot V01AR41 rotates and moves to pick | E96: 1.74 | F96: =F94+E96 -> 152.66 | IP96: 4
A97: 85 | B97: EE Engage Delay | E97: 1.5 | F97: =F96+E97 -> 154.16 | IP97: 4
A98: 86 | B98: Robot V01AR41 clears EE fixture | E98: 7.17 | F98: 161.33 | IP98: 4
A99: 87 | B99: Robot V01AR41 moves to pick marriage | E99: 2.61 | F99: 163.94 | IP99: 4
A100: 88 | B100: EE Clamps Close | E100: 1.5 | F100: 165.44 | IP100: 3
A101: 89 | B101: 010-GEO Clamps Open | C101: UQ3.1 TO UQ3.6 UQ4.1 TO UQ4.6 UQ5.1 TO UQ5.4 UQ6.1 UQ6.2 UQ6.3 UQ6.4 | E101: 1 | F101: 166.44 | IP101: 3
A102: 90 | B102: 010 Shot Pin Retracts | C102: UQ1.1 TO UQ1.4 UQ2.1 UQ2.2 | E102: 1 | F102: 167.44 | IP102: 3
A103: 91 | B103: Robot V01AR41 clears and repositions | E103: 2.56 | F103: 170 | IP103: 4
A104: 92 | B104: 010 Shot Pin Extends | C104: UQ1.1 TO UQ1.4 UQ2.1 UQ2.2 | E104: 1 | F104: 171 | IP104: 3
A105: 93 | B105: Robot V01AR41 moves to drop position | E105: 1.81 | F105: 172.81 | IP105: 4
A106: 94 | B106: Robot V01AR41 drops to STA 020 | E106: 8.36 | F106: 181.17 | IP106: 5
A107: 95 | B107: Robot V01AR41 clears to EE Stand | E107: 4.7 | F107: 185.87 | IP107: 4
A108: 96 | B108: EE Disengage Delay | E108: 1.5 | F108: =E108 +F107 -> 187.37 | IP108: 3
A109: 97 | B109: Robot V01AR41 clears EE Stand | E109: 1.57 | F109: 188.94 | IP109: 4
A110: 98 | B110: EE Stand Cover Close | E110: 1.5 | F110: =F109+E110 -> 190.44 | IP110: 3
A111: 99 | B111: Gun Stand Cover Open | E111: 1 | F111: =F109+E111 -> 189.94 | IP111: 3
A112: 100 | B112: Robot V01AR41 moves to gun pick | E112: 1.55 | F112: =F111+E112 -> 191.49 | IP112: 4
A113: 101 | B113: Gun Engage Delay | E113: 1.5 | F113: =F112+E113 -> 192.99 | IP113: 3
A114: 102 | B114: Robot V01AR41 Clear gun change | E114: 3.58 | F114: =F113+E114 -> 196.57 | IP114: 4
A115: 103 | B115: Turntable rotates 180° to DR Weld | E115: 6 | F115: =F105+E115 -> 178.81 | IP115: 3
A116: 104 | B116: ROBOT WELD DOOR RING | IP116: 2
A117: 105 | B117: Robot V01AR21 moves to weld | E117: 2.27 | F117: =F115+E117 -> 181.08 | IP117: 4
A118: 106 | B118: Robot V01AR21 welds 2 spots (SEG 1) | E118: 9.11 | F118: =F117+E118 -> 190.19 | IP118: 4
A119: 107 | B119: Robot V01AR21 welds 9 spots (SEG 2) | E119: 21.81 | F119: =F118+E119 -> 212 | IP119: 4
A120: 108 | B120: Robot V01AR21 welds 7 spots (SEG 3) | E120: 16.18 | F120: =F125+E120 -> 21.78 | IP120: 4
A121: 109 | B121: Robot V01AR21 welds 1 spots (SEG 4) | E121: 4.23 | F121: =F120+E121 -> 26.01 | IP121: 4
A122: 110 | IP122: 2
A123: 111 | B123: Robot V01AR22 moves to weld | E123: 1.23 | F123: =F105+E123 -> 174.04 | IP123: 4
A124: 112 | B124: Robot V01AR22 welds 13 spots (SEG 1) | E124: 33.19 | F124: =F115+E124 -> 212 | IP124: 4
A125: 113 | B125: **Wrapped Timing** | E125: 5.6 | F125: =E125 -> 5.6 | IP125: 4
A126: 114 | B126: Robot V01AR22 welds 1 spots (SEG 3) | E126: 6.09 | F126: =F125+E126 -> 11.69 | IP126: 4
A127: 115 | B127: Robot V01AR22 RTH | E127: 0.82 | F127: =F126+E127 -> 12.51 | IP127: 4
A128: 116 | IP128: 2
A129: 117 | B129: Robot V01AR41 moves to weld | E129: 1.86 | F129: =F114+E129 -> 198.43 | IP129: 4
A130: 118 | B130: Robot V01AR41 welds 5 spots (SEG 1) | E130: 13.57 | F130: =F129+E130 -> 212 | IP130: 4
A131: 119 | B131: **Wrapped Timing** | E131: 5.73 | F131: =E131 -> 5.73 | IP131: 4
A132: 120 | B132: Robot V01AR41 welds 3 spots (SEG 2) | E132: 10.06 | F132: =F131+E132 -> 15.79 | IP132: 4
A133: 121 | B133: Robot V01AR41 welds 4 spots (SEG 3) | E133: 16.51 | F133: =F132+E133 -> 32.3 | IP133: 4
A134: 122 | B134: Shot Pin Retracts | C134: UQ3.1 | E134: 1.5 | F134: =F135 -> 33.8 | IP134: 3
A135: 123 | B135: Respot Clamp Open | C135: UQ6.1 | E135: 1.5 | F135: =F133+E135 -> 33.8 | IP135: 3
A136: 124 | B136: Robot V01AR41 welds 3 spots (SEG 3) | E136: 18.06 | F136: =F135+E136 -> 51.86 | IP136: 4
A137: 125 | B137: ROBOT WELD HEADER MARRIAGE | IP137: 2
A138: 126 | B138: Robot V01AR23 moves to pick (SEG 1) | E138: 0.53 | F138: =F100 -> 165.44 | IP138: 4
A139: 127 | B139: Robot V01AR23 moves to pick (SEG 2) | E139: 0.05 | F139: =F100 -> 165.44 | IP139: 4
A140: =A139+1 -> 128 | B140: 020 Marriage Fixture Clamps Open | C140: UQ2.1 TO UQ2.6 | E140: 2 | F140: =F101 -> 166.44 | IP140: 3
A141: 129 | B141: 020 Shot Pin Retracts | C141: UQ1.1
A142: 130 | B142: Robot V01AR23 picks (SEG 1) | E142: 2.83 | F142: =F140+E142 -> 169.27 | IP142: 4
A143: 131 | B143: Robot V01AR23 EOAT Clamps Close | C143: UQ1.1 TO UQ1.4 | E143: 1 | F143: =F142+E143 -> 170.27 | IP143: 3
A144: 132 | B144: Robot V01AR23 EOAT Clamps Close | C144: UQ1.1, UQ2.1, UQ2.2
A145: 133 | B145: Robot V01AR23 picks (SEG 2) | E145: 2.32 | F145: =F143+E145 -> 172.59 | IP145: 4
A146: 134 | B146: Robot V01AR41 drops (STG 2 SEG 1) | E146: 2.37 | F146: =F145+E146 -> 174.96 | IP146: 4
A147: 135 | B147: Robot V01AR41 EOAT Clamps Open | C147: UQ2.1, UQ2.2 | E147: 1 | F147: 175.96 | IP147: 3
A148: 136 | B148: Robot V01AR41 drops (STG 2 SEG 2) | E148: 1.72 | F148: 177.68 | IP148: 4
A149: 137 | B149: Robot V01AR41 EOAT Clamps Open | C149: UQ2.1, UQ2.2 | E149: 1 | F149: 178.68 | IP149: 3
A150: 138 | B150: Robot V01AR41 drops (STG 2 SEG 3) | E150: 2.27 | F150: 180.95 | IP150: 4
A151: 139 | B151: 020 MARR Fixture Clamps Close | C151: UQ2.1 TO UQ2.5 UQ3.1 TO UQ3.4 | E151: 2 | F151: 182.95 | IP151: 3
A152: 140 | B152: 020 Shot Pin Extends | C152: UQ1.1
A153: 141 | B153: Robot V01AR23 drops (SEG 1) | E153: 2.66 | F153: =F143+E153 -> 172.93 | IP153: 4
A154: 142 | B154: Robot V01AR23 EOAT Clamps Open | E154: 1 | F154: =F153+E154 -> 173.93 | IP154: 3
A155: 143 | B155: Robot V01AR23 drops (SEG 2) | E155: 3.44 | F155: =F154+E155 -> 177.37 | IP155: 4
A156: 144 | B156: Robot V01AR23 moves in, welds 40 spots (SEG 1) and clears | E156: 29.05 | F156: =F151+E156 -> 212 | IP156: 4
A157: 145 | B157: **Wrapped Timing** | E157: 65.49 | F157: =E157 -> 65.49 | IP157: 4
A158: 146 | IP158: 4
A159: 147 | B159: Robot V01AR42 moves in, welds 41 spots (SEG 1) and clears | E159: 29.05 | F159: =F151+E159 -> 212 | IP159: 4
A160: 148 | B160: **Wrapped Timing** | E160: 65.81 | F160: =E160 -> 65.81 | IP160: 4
A161: 149 | B161: Respot Clamps Open | C161: UQ3.1 TO UQ3.4 | E161: 1 | F161: =F160+E161 -> 66.81 | IP161: 3
A162: 150 | B162: Robot V01AR42 moves in, welds 4 spots (SEG 2) and clears | E162: 16.17 | F162: =F161+E162 -> 82.98 | IP162: 4
A163: 151 | B163: Robot V01AR42 loads asm to CV | E163: 6 | F163: =F162+E163 -> 88.98 | IP163: 4
A164: 152 | B164: Robot V01AR42 RTH | E164: 3 | F164: =F163+E164 -> 91.98 | IP164: 4
B166: (RCS Timing All)
IQ167: 2
B168: Total Cycle Time | F168: =MAX(F11:F167) -> 212
B169: Estimated Walk Total | D169: =SUM(D11:D168) -> 134 | IQ169: 2
B170: Jobs Per Hour | F170: =SUM(3600/F168) -> 16.98113208

Sheet Quick Time 1
A1: =Cover!B13 -> Volvo | B1: =Cover!B15 -> 2023 P6700 | C1: =RIGHT(CELL("filename",D2),LEN(CELL("filename",D2))-FIND("]",CELL("filename",D2))) -> Quick Time 1
A2: =Cover!B17 -> Rear Wall Inner Header & Door Ring RH (17 jph) | B2: =Cover!B25 -> 212 | D2: =Cover!B21 -> 16145
A4: Operator obtain small parts | B4: How many | C4: 1 | D4: =1.8*C4 -> 1.8 | F4: Geo welds = | G4: 4 | H4: secs. Per weld
A5: Operator load small parts | B5: How many | C5: 1 | D5: =1.8*C5 -> 1.8
A6: Operator place small part (no precision) | B6: How many | C6: 1 | D6: =0.5*C6 -> 0.5 | F6: Respot welds = | G6: 3.5 | H6: secs. Per weld
A7: Operator obtain medium parts | B7: How many | C7: 1 | D7: =2.4*C7 -> 2.4
A8: Operator load medium parts | B8: How many | C8: 1 | D8: =3*C8 -> 3
A9: Operator place medium part (no precision) | B9: How many | C9: 1 | D9: =1*C9 -> 1 | F9: MIG welds = | G9: 25 | H9: inches per min.
A10: Operator obtain large parts | B10: How many | C10: 1 | D10: =4.2*C10 -> 4.2
A11: Operator load large parts | B11: How many | C11: 1 | D11: =4.2*C11 -> 4.2
A12: Operator place large part (no precision) | B12: How many | C12: 1 | D12: =1.8*C12 -> 1.8 | F12: Laser brazing = | G12: 130 | H12: inches per min.
A13: Operator total walk | B13: Total in feet | C13: 10 | D13: =0.3*C13 -> 3
A14: Operator hit P.B. | D14: =1*C14 -> 0 | F14: Note: Range of 95 inches/min to max speed of 173 inches/min. To achieve higher speeds 6 KW power unit needs to be used. 130 inches/min is an average.
A15: Operator Load Assist- load/unload part to fixt or rack(includes lwr, open/close clp and raise) | B15: # of loads /unloads | D15: =C15*12.5 -> 0
A16: Operator walk with load assist | B16: Total in feet | C16: 6 | D16: =0.5*C16 -> 3
A17: Fixture - Clamp/Gripper close | B17: # of close | D17: =1*C17 -> 0
A18: Fixture - Clamp /Gripper open | B18: # of open | D18: =1*C18 -> 0 | F18: Adhesive/Seal = | G18: 300 | H18: mm per sec.
A19: Fixture - Suction Cup vacuum on | B19: # of vacuum on | D19: =1*C19 -> 0
A20: Fixture - Suction Cup vacuum off | B20: # of vacuum off | D20: =1*C20 -> 0
A21: Fixture - Manual Clamp close | B21: # of close | D21: =1.8*C21 -> 0
A22: Fixture - Manual Clamp open | B22: # of open | D22: =2.3*C22 -> 0
A23: Fixture - Shot pin extend | B23: # of extends | D23: =1*C23 -> 0
A24: Fixture - Shot pin retract | B24: # of retracts | D24: =1*C24 -> 0
A25: Fixture - Slide extend | B25: # of extends | D25: =2*C25 -> 0
A26: Fixture - Slide retract | B26: # of retracts | D26: =2*C26 -> 0
A27: Fixture - Pivot close | B27: # of close | D27: =2*C27 -> 0
A28: Fixture - Pivot open | B28: # of open | D28: =2*C28 -> 0
A29: Fixture - Trunnion rotates 180 | B29: # of rotates | D29: =4*C29 -> 0
A30: Fixture - Turn Table rotates 180 | B30: # of rotates | D30: =6*C30 -> 0
A31: Robot pick part | B31: # of picks | C31: 0 | D31: =IF(C31=0,0, IF(C31=1, 6, IF(C31=2, 10, IF(C31=3, 14, IF(C31=4, 18))))) -> 0
A32: Robot rotate 45 | B32: # of rotates | D32: =1*C32 -> 0
A33: Robot rotate 90 | B33: # of rotates | D33: =2*C33 -> 0
A34: Robot rotate 180 | B34: # of rotates | D34: =3*C34 -> 0
A35: Robot rotate 270 | B35: # of rotates | D35: =4*C35 -> 0
A36: Robot place part | B36: # of places | C36: 0 | D36: =IF(C36=0,0, IF(C36=1, 6, IF(C36=2, 10, IF(C36=3, 14, IF(C36=4, 18))))) -> 0
A37: Robot moves on 7th axis | B37: Distance (# foot) | D37: =0.3*C37 -> 0
A38: Robot rotate to home | B38: # of rotates | D38: =2*C38 -> 0
A39: Robot delay | B39: # of delays | D39: =1*C39 -> 0
A40: Robot date scribe | B40: # of date scribe | D40: =6*C40 -> 0
A41: Robot check tree (nuts & studs) | B41: # of check positions | D41: =2*C41 -> 0
A42: Robot changes EOAT (drop 1 and pick 1) | B42: # of changes | D42: =C42*15 -> 0
A43: Weld robot in | D43: =1.5*C43 -> 0
A44: Weld robot welds (GEO) | B44: # of welds -GEO- | D44: =G4*C44 -> 0
A45: Weld robot welds (Respot) | B45: # of welds -Respot- | D45: =G6*C45 -> 0
A46: Weld robot out | D46: =1.5*C46 -> 0
A47: Mig robot in | D47: =1.5*C47 -> 0
A48: Mig robot weld | B48: # of welds | D48: =2.25*C48 -> 0
A49: Mig robot weld | B49: Weld Length (mm) | D49: =C49/(G9*25.4/60) -> 0
A50: Mig robot out | D50: =1.5*C50 -> 0
A51: Laser brazing robot in | D51: =1.5*C51 -> 0
A52: Seam detection at start of process | B52: Weld Length (mm) | D52: =2*C52 -> 0
A53: Laser brazing robot welds | B53: Weld Length (mm) | D53: =C53/(G12*25.4/60) -> 0
A54: Laser brazing robot out | D54: =1.5*C54 -> 0
A55: Adh/Seal robot in | D55: =1.5*C55 -> 0
A56: Adh/Seal robot | B56: # of Beads | D56: =1.25*C56 -> 0
A57: Adh/Seal robot | B57: Adh/Seal Length (mm) | D57: =C57/G18 -> 0
A58: Adh/Seal robot out | D58: =1.5*C58 -> 0
A59: Proj/clinch nut/stud Weld robot in | D59: =1.5*C59 -> 0
A60: Proj/clinch nut/stud Weld robot welds | B60: # of welds | D60: =5.5*C60 -> 0
A61: Proj/clinch nut/stud Weld robot out | D61: =1.5*C61 -> 0
A62: DA studs Weld robot in | D62: =1.5*C62 -> 0
A63: DA studs Weld robot welds | B63: # of DA welds | D63: =3.5*C63 -> 0
A64: DA studs Weld robot out | D64: =1.5*C64 -> 0
A65: FDS robot in | D65: =1.5*C65 -> 0
A66: FDS robot Screws | B66: # of screws | D66: =C66*6 -> 0
A67: FDS robot out | D67: =1.5*C67 -> 0
A68: SPR robot in | D68: =1.5*C68 -> 0
A69: SPR robot Rivets | B69: # of Rivets | D69: =C69*4.5 -> 0
A70: SPR robot out | D70: =1.5*C70 -> 0
A71: Manual Weld - Operator obtains weld gun (medium) | D71: =C71*4 -> 0
A72: Manual Weld - Operator obtains weld gun (large) | D72: =5.5*C72 -> 0
A73: Manual Weld - Operator repositions weld gun (<6") | D73: =0.9*C73 -> 0
A74: Manual Weld - Operator repositions weld gun (>6",<24") | D74: =1.7*C74 -> 0
A75: Manual Weld - Operator repositions weld gun (>24") | D75: =2.5*C75 -> 0
A76: Manual Weld - Operator repositions weld gun through access hole | D76: =1.7*C76 -> 0
A77: Manual Weld - Operator rotates weld gun | D77: =1.7*C77 -> 0
A78: Manual Weld - Operator returns weld gun to hook | D78: =2*C78 -> 0
A79: Manual Weld - Operator releases weld gun | D79: =0.5*C79 -> 0
A80: Manual Weld - Operator welds - 1st in a group or only (simple) | D80: =2.6*C80 -> 0
A81: Manual Weld - Operator welds - each additional weld (simple) | D81: =0.8*C81 -> 0
A82: Manual Weld - Operator welds - 1st in a group or only (complex) | D82: =3.1*C82 -> 0
A83: Manual Weld - Operator welds - each additional weld (complex) | D83: =1.3*C83 -> 0
A84: Manual Weld - Operator welds - 1st in a group or only (heavy gauge) | D84: =3.4*C84 -> 0
A85: Manual Weld - Operator welds - each additional weld (heavy gauge) | D85: =1.6*C85 -> 0
A89: TOTAL ESTIMATED TIME | D89: =SUM(D4:D88) -> 26.7
A90: TOTAL AVAILABLE TIME | D90: =Cover!B25 -> 212
A91: DIFFERENCE | D91: =D90-D89 -> 185.3

Sheet timedata
B1: Robot Material Handling | C1: Secs | E1: Welding Robots Only | F1: Secs | H1: Handling parts | I1: Obtain | K1: Select | M1: Load | O1: Place | Q1: Manual Tools | T1: Fasteners | U1: Secs | W1: Very Small | X1: Small | Y1: Medium | Z1: Large | AA1: Very Large | AD1: Part Sizes
A2: 1 | B2: Logic delay | C2: 1 | D2: 1 | E2: Rotates approx. 45 degrees to | F2: 3 | H2: Very Small Part (No Walk) | I2: 0.7 | J2: 0.2 | K2: 0.7 | L2: 0.2 | M2: 1.1 | O2: 0.5 | Q2: Note that lines between jobs contain "blanks" (not empty) to make this list work | T2: Obtain power tool (and release after using) | U2: 4.5 | W2: Bolt | X2: Anchor | Y2: A-pillar | Z2: Bodyside | AA2: Cab Back | AD2: A-pillar | AE2: Medium
A3: =A2+1 -> 2 | B3: Rotates approx. 45 degrees to | C3: 3 | D3: =D2+1 -> 2 | E3: Rotates approx. 90 degrees to | F3: 4 | H3: Small Part | I3: 3.5 | J3: 0.9 | K3: 3.5 | L3: 0.9 | M3: 1.1 | O3: 0.5 | Q3: Tool Handling (nut runners) / fastener securing | T3: Obtain power tool (and release after using) if greater than 24" to reach fastener | U3: 5.3 | W3: J-clip | X3: Applicator | Y3: B-pillar | Z3: Dash Panel | AA3: Floor-pan | AD3: Anchor | AE3: Small
A4: 3 | B4: Rotates approx. 90 degrees to | C4: 4 | D4: 3 | E4: Rotates pounce to first weld | F4: 2 | H4: Medium Part | I4: 4.4 | K4: 5.3 | M4: 1.1 | O4: 1 | T4: Insert margin or flushness gauge into gap | U4: 1 | W4: J-nut | X4: Bar | Y4: Cowl side | Z4: Deck-lid | AA4: Rear Floor Pan | AD4: Applicator | AE4: Small
A5: 4 | B5: Rotates approx. 180 degrees to | C5: 6 | D5: 4 | E5: Articulate weld gun through welds on part in fixture | F5: 3 | H5: Large Part | I5: 5.4 | K5: 6.3 | M5: 2.7 | O5: 1.8 | Q5: Open / Close doors, decklids, or hoods | T5: Hand start nut, screw, or bolt | U5: 3 | W5: Locator | X5: Brace | Y5: Cowl top | Z5: Door | AA5: Underbody | AD5: B-pillar | AE5: Medium
A6: 5 | B6: Clamps on end effector extend, securing | C6: 1 | D6: 5 | E6: Repositions to weld in additional plane | F6: 3 | H6: Large Special | I6: 6.7 | K6: 7.6 | M6: 2.7 | O6: 1.8 | T6: Load nut, screw, or bolt to power tool | U6: 1.2 | W6: Nut | X6: Bracket | Y6: C-pillar | Z6: Door-opening-Panel | AD6: Bar | AE6: Small
A7: 6 | B7: Clamps on end effector retract, releasing | C7: 1 | D7: 6 | E7: Moves clear of fixture clamps | F7: 1.5 | H7: Very Large Part * V0 | I7: 17.5 | J7: V0 | K7: 18.4 | L7: V0 | M7: 1.7 | N7: V0 | O7: 0.5 | P7: V0 | Q7: Fit Closure Panels | T7: Secure nut, screw, or bolt using power tool | W7: Nut and bolt assembly | X7: Daub | Y7: D-pillar | Z7: Fender | AD7: Bodyside | AE7: Large
A8: 7 | B8: Articulates part through welds at PED Weld Stand | C8: 3 | D8: 7 | E8: Rotates clear of fixture | F8: 2.5 | H8: Very Large Part * F0 | I8: 12 | J8: F0 | K8: 12.9 | L8: F0 | M8: 1.7 | N8: F0 | O8: 0.5 | P8: F0 | W8: Nut and Washer Assembly | X8: Door-hinge | Y8: Front floor pan crossmember | Z8: Floor | AD8: Bolt | AE8: Very Small
A9: 8 | B9: Rotates clear of fixture | C9: 3 | D9: 8 | E9: Rotate home to pounce | F9: 2 | H9: Very Large Part * N0 | I9: 15.5 | J9: N0 | K9: 16.4 | L9: N0 | M9: 2 | N9: N0 | O9: 0.5 | P9: N0 | Q9: Use portable fixtures | T9: Tool Motor Type / per fastener times | U9: Torque | V9: Secs | W9: Palm button | X9: Fastener | Y9: Grille Opening Reinforcement | Z9: Frame rail | AD9: Brace | AE9: Small
A10: 9 | B10: Rotate to home | C10: 3 | D10: 9 | E10: Logic delay | F10: 1 | H10: Very Large Part * H0 | I10: 11.6 | J10: H0 | K10: 12.5 | L10: H0 | M10: 2 | N10: H0 | O10: 0.5 | P10: H0 | T10: N01-N05 | U10: 0.70-2.50 | V10: 2.5 | W10: Pot-rivet | X10: Header | Y10: Liftgate | Z10: Front Fender Body | AD10: Bracket | AE10: Small
A11: 10 | B11: Rotates to Pounce | C11: 2 | H11: Very Large Part * V1 | I11: 18.8 | J11: V1 | K11: 19.7 | L11: V1 | M11: 1.7 | N11: V1 | O11: 0.5 | P11: V1 | Q11: Manual clamping | T11: N1-N8 | U11: 2.51-20.00 | V11: 2.5 | W11: Push pin | X11: Nut and Plate assembly | Y11: Package Tray | Z11: Hood | AD11: C-pillar | AE11: Medium
A12: 11 | B12: Articulate and pick second part | C12: 5 | H12: Very Large Part * F1 | I12: 13.3 | J12: F1 | K12: 14.2 | L12: F1 | M12: 1.7 | N12: F1 | O12: 0.5 | P12: F1 | T12: N9-N11 | U12: 20.1-40.0 | V12: 4 | W12: Rivet | X12: Reinforcement | Y12: Pillar | Z12: Lower back panel s/a | AD12: Cab Back | AE12: Very Large
A13: 12 | B13: Articulate and set second part | C13: 5 | H13: Very Large Part * N1 | I13: 14.7 | J13: N1 | K13: 15.6 | L13: N1 | M13: 2 | N13: N1 | O13: 0.5 | P13: N1 | T13: N12-N14 | U13: 40.1-90.0 | V13: 5.9 | W13: Rivnut | X13: Teleauto ticket | Y13: Plenum | Z13: Quarter panel | AD13: Cowl side | AE13: Medium
H14: Very Large Part * H1 | I14: 10.9 | J14: H1 | K14: 11.8 | L14: H1 | M14: 2 | N14: H1 | O14: 0.5 | P14: H1 | T14: N15 | U14: 90.1-115.0 | V14: 6.6 | W14: Screw | Y14: Roof Bow | Z14: Roof | AD14: Cowl top | AE14: Medium
T15: N16 | U15: 115.1-150.0 | V15: 7.9 | W15: Solder | Y15: Roof Rail | Z15: Tailgate | AD15: D-pillar | AE15: Medium
T16: N17-N22 | U16: 150.1-700.0 | V16: 8.5 | W16: Stud | Z16: Underbody Reinforcement | AD16: Dash Panel | AE16: Large
W17: Stud bolt | Z17: Wheelhouse inner | AD17: Daub | AE17: Small
W18: Tab | Z18: Wheelhouse outer | AD18: Deck-lid | AE18: Large
W19: U-nut | Z19: Wheelhouse panel | AD19: Door | AE19: Large
B20: Other Robot Operations | C20: Secs | E20: Palm Buttons | F20: Secs | H20: Unload/Transfer/Position | J20: Unload | K20: Transfer | L20: Position | Q20: Portable Fixtures | T20: Fit Door / Hood / Decklids | W20: Weld | AD20: Door-hinge | AE20: Small
A21: =A20+1 -> 1 | B21: Rotates pounce to start position | C21: 2 | E21: Step to pedestal, press and release 2 palm buttons simultaneously and step away from pedestal | F21: 2.9 | H21: Very Small Part | J21: 1.7 | K21: 3.7 | L21: 0.8 | Q21: Obtain SMALL fixture and postion to body panel | R21: 4.4 | T21: Fit Door | U21: 17.8 | W21: Weld bolt | AD21: Door-opening-Panel | AE21: Large
A22: 2 | B22: Apply mastic daubs at PED stand | C22: 3 | E22: Press palm button located on fixture requiring one hand to activate | F22: 0.6 | H22: Small Part | J22: 1.7 | K22: 4 | L22: 0.8 | Q22: Obtain MEDIUM fixture and postion to body panel | R22: 5.5 | T22: Fit Decklid | U22: 21.9 | W22: Weld nut | AD22: Fastener | AE22: Small
A23: 3 | B23: Apply mastic bead at PED stand | C23: 275 | E23: Press and hold palm button (hold dependent on machine cycle time) | F23: 0.6 | H23: Medium Part | J23: 1.7 | K23: 5.2 | L23: 1.1 | Q23: Obtain LARGE fixture and postion to body panel | R23: 7.7 | T23: Fit Hood (assume same as decklid) | U23: 21.9 | AD23: Fender | AE23: Large
A24: 4 | B24: Apply adhesive at PED stand | C24: 275 | E24: Depress foot pedal | F24: 0.4 | H24: Large Part | J24: 2.6 | K24: 8.3 | L24: 2.3 | Q24: Pull detail locking in | R24: 1.9 | AD24: Floor | AE24: Large
A25: 5 | B25: Apply sealer at PED stand | C25: 275 | E25: Turn selector knob | F25: 1.2 | H25: Very Large Part * | I25: V | J25: 1.7 | K25: 10.4 | L25: 1.4 | Q25: Turn detail pin | R25: 1.2 | AD25: Floor-pan | AE25: Very Large
A26: 6 | B26: Repostions to another area on part | C26: 2 | E26: Press toggle switch | F26: 0.6 | H26: Very Large Part * | I26: F | J26: 1.7 | K26: 7.2 | L26: 1.4 | Q26: Press control button on fixture | R26: 0.5 | AD26: Frame rail | AE26: Large
A27: 7 | B27: Apply mastic bead at fixture | C27: 275 | E27: Press keypad button (when extra force not required to press) | F27: 0.5 | H27: Very Large Part * | I27: N | J27: 1.7 | K27: 9.2 | L27: 1.4 | Q27: Rotate fixture on bench | R27: 3.4 | AD27: Front floor pan crossmember | AE27: Medium
A28: 8 | B28: Apply adhesive at fixture | C28: 275 | E28: Firmly press keypad button (when button requires extra force) | F28: 1.2 | H28: Very Large Part * | I28: H | J28: 1.7 | K28: 9.2 | L28: 1.4 | Q28: Remove SMALL fixture after being unclamped from body | R28: 1.4 | AD28: Front Fender Body | AE28: Large
A29: 9 | B29: Apply sealer at fixture | C29: 275 | Q29: Remove MEDIUM fixture after being unclamped from body | R29: 3.1 | AD29: Grille Opening Reinforcement | AE29: Medium
A30: 10 | B30: Apply CLINCH nuts | C30: 4.5 | Q30: Remove LARGE fixture after being unclamped from body | R30: 4.4 | AD30: Header | AE30: Small
A31: 11 | B31: Apply WELD nuts | C31: 5.5 | AD31: Hood | AE31: Large
A32: 12 | B32: Applies date stamp | C32: 2 | AD32: J-clip | AE32: Very Small
AD33: J-nut | AE33: Very Small
AD34: Liftgate | AE34: Medium
AD35: Locator | AE35: Very Small
AD36: Lower back panel s/a | AE36: Large
AD37: Nut | AE37: Very Small
AD38: Nut and bolt assembly | AE38: Very Small
B39: Part Handling | AD39: Nut and Plate assembly | AE39: Small
B40: Note that lines between jobs contain "blanks" (not empty) to make this list work | E40: Walk | F40: Sec/ft | H40: Hoists | I40: Type | J40: 0 Hooks | K40: 1 Hook | L40: 2 Hooks | Q40: Open Close Doors, Decklids, Hoods | T40: Clamping | W40: GEO Fixtures | AD40: Nut and Washer Assembly | AE40: Very Small
B41: Walk / Carry Parts | E41: Standard walk with any other than large part | F41: 0.3 | H41: Obtain and engage part | I41: V | J41: 9.7 | K41: 11 | L41: 12.8 | Q41: Open Door | R41: 2.3 | T41: Close manually operated fixure clamp | U41: 11.4 | W41: fixture clamps close | X41: 1 | AD41: Package Tray | AE41: Medium
E42: Any walk with very large object or 2 operators walking in combination | F42: 0.4 | H42: Obtain and engage part | I42: F | J42: 7.4 | K42: 8.6 | L42: 10.4 | Q42: Open Hood | R42: 3.2 | T42: Open manually operated fixture clamp | U42: 2.3 | W42: fixture clamps open | X42: 1 | AD42: Palm button | AE42: Very Small
B43: Obtain / Select/ Load / Place Parts | E43: Unrestricted walk over a long distance such in a warehouse | F43: 0.2 | H43: Obtain and engage part | I43: N | J43: 9.5 | K43: 9.3 | L43: 11.1 | Q43: Open Decklid | R43: 2.1 | T43: Apply hand clamp | U43: 3.8 | W43: Shot Pins Extend | X43: 1 | AD43: Pillar | AE43: Medium
E44: Standard walk without part | F44: 0.3 | H44: Obtain and engage part | I44: H | J44: 7.7 | K44: 9.1 | L44: 10.9 | Q44: Close Door | R44: 2.1 | T44: Remove hand clamp | U44: 3.1 | W44: Shot Pins retract | X44: 1 | AD44: Plenum | AE44: Medium
B45: Unload / Transfer / Position Part | H45: Disengage from part and put aside | I45: V | J45: 4.6 | K45: 5.8 | L45: 7.5 | Q45: Close Hood | R45: 2.7 | T45: Enter vehicle | U45: 6.1 | W45: Slides extend | X45: 2 | AD45: Pot-rivet | AE45: Very Small
H46: Disengage from part and put aside | I46: F | J46: 5.2 | K46: 6.3 | L46: 8 | Q46: Close Decklid | R46: 2.1 | T46: Exit vehicle | U46: 2.2 | W46: Slides retract | X46: 2 | AD46: Push pin | AE46: Very Small
B47: Palm Buttons | H47: Disengage from part and put aside | I47: N | J47: 2.2 | K47: 3.4 | L47: 5 | Q47: Prop Open Hood | R47: 7.7 | T47: Sit in chair or on stool | U47: 3.9 | W47: Cylinders extend | X47: 1 | AD47: Quarter panel | AE47: Large
H48: Disengage from part and put aside | I48: H | J48: 6.1 | K48: 7.2 | L48: 8.9 | Q48: Remove prop rod (slave) from hood | R48: 1.4 | W48: Cylinders retract | X48: 1 | AD48: Rear Floor Pan | AE48: Very Large
B49: Handling with Hoists | Q49: Prop Open Decklid | R49: 7.7 | W49: Trunnion Rotate | X49: 4 | AD49: Reinforcement | AE49: Small
Q50: Remove prop rod (slave) from decklid | R50: 1.4 | W50: Table Rotate | X50: 4 | AD50: Rivet | AE50: Very Small
B51: Typical Part Sizes | AD51: Rivnut | AE51: Very Small
AD52: Roof | AE52: Large
AD53: Roof Bow | AE53: Medium
AD54: Roof Rail | AE54: Medium
AD55: Screw | AE55: Very Small
AD56: Solder | AE56: Very Small
AD57: Stud | AE57: Very Small
AD58: Stud bolt | AE58: Very Small
AD59: Tab | AE59: Very Small
AD60: Tailgate | AE60: Large
AD61: Teleauto ticket | AE61: Small
AD62: U-nut | AE62: Very Small
AD63: Underbody | AE63: Very Large
AD64: Underbody Reinforcement | AE64: Large
AD65: Weld | AE65: Very Small
AD66: Weld bolt | AE66: Very Small
AD67: Weld nut | AE67: Very Small
AD68: Wheelhouse inner | AE68: Large
AD69: Wheelhouse outer | AE69: Large
AD70: Wheelhouse panel | AE70: Large
